{"text_format":"1","workbook":"xlsx","n_sheets":6,"sheets":["بيانات المدرسين","طباعة بيان حالة معلم","طباعة شهادة خبرة","إحصاء","إحصاء درجة","الاسماء حسب الدرجة"],"not_rendered":{"charts":0,"images":2,"macros":1,"external_links":1,"defined_names":11,"comments":0,"pivot_tables":0},"unopened":[],"bounds":{"document_bytes":16777216,"sheet_cells":100000,"rows_first":2000,"rows_last":500,"rows_between":2000,"halvings":0,"cell_chars":16384,"cell_head_chars":4096},"cells_cut":0,"cells_raw":0,"read":"whole","date_system":"1900"}

{"sheet":"بيانات المدرسين","index":0,"n_rows":120,"n_cols":52,"rows_kept":120,"cut":false,"hidden":false,"merged":[[2,49,3,49],[2,50,3,50],[2,51,3,51],[2,44,3,44],[2,45,3,45],[2,46,3,46],[2,47,3,47],[2,48,3,48],[2,39,3,39],[2,40,3,40],[2,41,3,41],[2,42,3,42],[2,43,3,43],[2,34,3,34],[2,35,3,35],[2,36,3,36],[2,37,3,37],[2,38,3,38],[2,5,3,5],[2,11,3,11],[2,14,3,14],[2,23,3,23],[2,12,3,12],[2,13,3,13],[2,15,3,15],[2,8,3,8],[2,20,3,20],[2,7,3,7],[2,17,3,17],[2,18,3,18],[2,16,3,16],[2,6,3,6],[2,9,3,9],[2,10,3,10],[2,0,3,0],[2,1,3,1],[2,2,3,2],[2,3,3,3],[2,4,3,4],[2,19,3,19],[2,33,3,33],[2,32,3,32],[2,31,3,31],[2,21,3,21],[2,22,3,22],[2,29,3,29],[2,30,3,30],[2,24,3,24],[2,25,3,25],[2,26,3,26],[2,27,3,27],[2,28,3,28]]}
[null,null,null,null,null,null,null,null,null,null,null,null,null,null,null,null,null,null,null,null,null,null,null,null,null,null,1]
[1,2,3,4,5,6,7,8,9,10,11,12,13,14,15,16,17,18,19,20,21,22,23,24,25,26,27,28,29,30,31,32,33,34,35,36,37,38,39,40,41,42,43,44,45,46,47,48,49,50,51,52]
["مسلسل","اسم المدرس","كود المدرس","التخصص","الوظيفة","الرقم القومى","المسمى الوظيفى طبقا للكادر","رقم القرار","تاريخ المسمى الوظيفى","تاريخ الميلاد","رقم التليفون","الدرجة المالية","تاريخ الدرجة","المجموعة النوعية","المؤهل","نوع المؤهل","تاريخ المؤهل","جهة الحصول على المؤهل","تقدير المؤهل","تاريخ التعيين","تاريخ الاستلام","المديرية","الادارة","المدرسة","المرحلة","محل الميلاد","الجنسية","الديانة","النوع","الحالة الاجتماعية","العنوان","الموقف من العمل","الموقف من التجنيد","الدورات الحاصل عليها","تاريخ الاحالة للمعاش"]
[]
[{"$f":"IF(B5=\"\",\"\",ROW()-4)","v":1},"ابراهيم محمود احمد على",28804,"لغة عربية","مدرس ثانوى",27206302800394,"معلم خبير",163,"2018-10-21",{"$f":"IF(F5=\"\",\"\",DATE(IF(LEFT(F5,1)*1=3,20,19)&MID(F5,2,2),MID(F5,4,2),MID(F5,6,2)))","v":"1972-06-30"},"01000438741","الاولى","2018-10-21","الوظائف التخصصية للتعليم","ليسانس اداب","عليا","1993-06-01","جامعة اسيوط","جيد","1994-10-13","1995-07-11","أسوان","دراو","بنبان الثانوية المشتركة","الثانوية",{"$f":"Kh_Date_Sex_Province($F5,3)","v":"أسوان"},"مصرى","مسلم",{"$f":"IF(LEN(TRIM($F5))=0,\"\",IF(OR(NOT(ISNUMBER($F5)),LEN($F5)<>14),\"قومي خطأ\",IF(MOD(MID($F5,13,1),2)=1,\"ذكر\",\"انثى\")))","v":"ذكر"},"متزوج ويعول","بنبان قبلى","على رأس عمله","أدى الخدمة",null,{"$f":"IF(J5=\"\",\"\",DATE(YEAR(J5)+60,MONTH(J5),DAY(J5)))","v":"2032-06-30"}]
[{"$f":"IF(B6=\"\",\"\",ROW()-4)","v":2},"احمد عبدالعزيز احمد محمود",2652840,"مجال زراعى","مدرس ثانوى",28103082801218,"معلم",16,"2015-06-22",{"$f":"IF(F6=\"\",\"\",DATE(IF(LEFT(F6,1)*1=3,20,19)&MID(F6,2,2),MID(F6,4,2),MID(F6,6,2)))","v":"1981-03-08"},"01226582584","الثالثة","2015-06-22","الوظائف التخصصية للتعليم","ب علوم زراعية + دبلوم عام في التربية","دراسات عليا","2014-11-19","جامعة الازهر","جيد","2012-05-21","2015-07-09","أسوان","دراو","بنبان الثانوية المشتركة","الثانوية",{"$f":"Kh_Date_Sex_Province($F6,3)","v":"أسوان"},"مصرى","مسلم",{"$f":"IF(LEN(TRIM($F6))=0,\"\",IF(OR(NOT(ISNUMBER($F6)),LEN($F6)<>14),\"قومي خطأ\",IF(MOD(MID($F6,13,1),2)=1,\"ذكر\",\"انثى\")))","v":"ذكر"},"متزوج ويعول","الرقبة","على رأس عمله","أدى الخدمة",null,{"$f":"IF(J6=\"\",\"\",DATE(YEAR(J6)+60,MONTH(J6),DAY(J6)))","v":"2041-03-08"}]
[3,"احمد محمد خير حسين محمد على",1661357,"جغرافيا","مدرس اول ثانوى",27203192800838,"معلم اول أ",null,"2012-09-19",{"$f":"IF(F7=\"\",\"\",DATE(IF(LEFT(F7,1)*1=3,20,19)&MID(F7,2,2),MID(F7,4,2),MID(F7,6,2)))","v":"1972-03-19"},null,"الاولى","2012-09-19","الوظائف التخصصية للتعليم","ليسانس اداب","عليا","1905-06-13",null,null,"1995-09-26",null,"أسوان","دراو","بنبان الثانوية المشتركة","الثانوية","أسوان","مصرى","مسلم",{"$f":"IF(LEN(TRIM($F7))=0,\"\",IF(OR(NOT(ISNUMBER($F7)),LEN($F7)<>14),\"قومي خطأ\",IF(MOD(MID($F7,13,1),2)=1,\"ذكر\",\"انثى\")))","v":"ذكر"},"متزوج ويعول","الرقبة","اجازة بدون مرتب للتعاقد","أدى الخدمة",null,"2032-03-19"]
[4,"ازهار محمد احمد حسين",26946,"لغة عربية","مدرس اول ثانوى",26904132800281,"معلم اول أ",163,"2018-10-21","1969-04-13","01015521345","الاولى","2018-10-21","الوظائف التخصصية للتعليم","ليسانس اداب وتربية","عليا","1991-06-01","جامعة اسيوط","مقبول","1991-09-01","1992-01-11","أسوان","دراو","بنبان الثانوية المشتركة","الثانوية","أسوان","مصرى","مسلم","انثى","متزوج ويعول","الرقبة","على رأس عمله","أدى الخدمة",null,"2029-04-13"]
[5,"الحسن ربيع جادالكريم توفيق",36420,"حاسب آلى","مدرس اول أ اعدادى",28012162800551,"معلم اول أ",163,"2018-10-21","1980-12-16","01009519510","الاولى","2018-10-21","الوظائف التخصصية للتعليم","بكالوريوس تربية نوعية","عليا","2001-06-01","جامعة جنوب الوادى","جيد","2004-07-01","2004-07-01","أسوان","دراو","بنبان الثانوية المشتركة","الثانوية","أسوان","مصرى","مسلم","ذكر","متزوج ويعول","بنبان قبلى","على رأس عمله","أدى الخدمة",null,"2040-12-16"]
[6,"الشاذلى عبد الرازق بدوى ابراهيم‎"," 33429 ","لغة انجليزية","مدرس اعدادى",27511082800456,"معلم اول أ",40,"2014-08-14","1975-11-08","01125129439","الاولى","2014-08-14","الوظائف التخصصية للتعليم","ليسانس اداب وتربية‎","عليا",null,null,null,null,null,"أسوان","دراو","بنبان الثانوية المشتركة","الثانوية","أسوان","مصرى","مسلم","ذكر","متزوج ويعول","الرقبة","على رأس عمله","أدى الخدمة",null,"2035-11-08"]
[7,"انور محمد عثمان طه",28722,"رياضيات","مدرس ثانوى",27012242800419,"معلم خبير",163,"2018-10-21","1970-12-24","01001422078","الاولى","2018-10-21","الوظائف التخصصية للتعليم","بكالوريوس علوم وتربيه","عليا","1995-06-01","جامعة جنوب الوادى","جيد","1995-09-01","1996-03-02","أسوان","دراو","بنبان الثانوية المشتركة","الثانوية","أسوان","مصرى","مسلم","ذكر","متزوج ويعول","الرقبة","على رأس عمله","أدى الخدمة",null,"2030-12-24"]
[8,"جمعه على ابراهيم عبد الكريم",24984,"لغة انجليزية","مدرس اول ثانوى",26706232800257,"معلم خبير",3,"2016-07-07","1967-06-23","01121884967","الاولى","2016-07-07","الوظائف التخصصية للتعليم","ليسانس اداب + دبلوم عام في التربية"," دراسات عليا","1994-05-01","جامعة اسيوط","مقبول","1990-10-01","1991-03-14","أسوان","دراو","بنبان الثانوية المشتركة","الثانوية","أسوان","مصرى","مسلم","ذكر","متزوج ويعول","بنبان قبلى","على رأس عمله","أدى الخدمة",null,"2027-06-23"]
[9,"حامد عبدالعزيز الامين موسى",21589,"رياضيات","نائب مدير",26408072800297,"كبير معلمين",163,"2018-10-21","1964-08-07","01002038944","الاولى","2018-10-21","الوظائف التخصصية للتعليم","بكلوريوس علوم وتربية","عليا","1987-06-01","جامعة اسيوط","جيد","1987-09-01","1988-01-05","أسوان","دراو","بنبان الثانوية المشتركة","الثانوية","أسوان","مصرى","مسلم","ذكر","متزوج ويعول","بنبان قبلى","على رأس عمله","أدى الخدمة",null,"2024-08-07"]
[10,"حامد مصطفى عبد الستار طاهر",34552,"اخصائى تكنولوجيا","اخصائى اول ثانوى",27707031401036,"اخصائى اول أ",40,"2014-08-14","1977-07-03","01065581099","الاولى","2014-08-14","الوظائف التخصصية للتعليم","بكالوريوس تربية نوعيه","عليا","1999-06-01","جامعة جنوب الوادى","جيد","2000-05-15","2000-07-01","أسوان","دراو","بنبان الثانوية المشتركة","الثانوية","القليوبية","مصرى","مسلم","ذكر","متزوج ويعول","بنبان قبلى","على رأس عمله","أدى الخدمة",null,"2037-07-03"]
[11,"حسام محمود الشاذلى عبد الله محمد",2179873,"علم نفس","مدرس ثانوى",27707222800178,"معلم اول",100,"2017-05-03","1977-07-22","01093783507","الاولى","2017-05-03","الوظائف التخصصية للتعليم","ليسانس اداب + دبلوم عام في التربية","دراسات عليا","2010-10-30","جامعة جنوب الوادى","جيد","2009-07-01","2011-07-06","أسوان","دراو","بنبان الثانوية المشتركة","الثانوية","أسوان","مصرى","مسلم","ذكر","متزوج ويعول","أسوان","على رأس عمله","أدى الخدمة",null,"2037-07-22"]
[12,"حسن عبدالبصير حسين حسين","18234 ","عامل خدمات‎","عامل خدمات",26110152300059,"غير مخاطب حاليا بقانون كادر المعلم",null,null,"1961-10-15","01000864293","الثالثة",null,"وظائف الخدمات المعاونة"," أقل من المتوسطة",null,null,null,null,null,null,"أسوان","دراو","بنبان الثانوية المشتركة","الثانوية","الفيوم","مصرى","مسلم","ذكر","متزوج ويعول","بنبان قبلى","على رأس عمله","أدى الخدمة",null,"2021-10-15"]
[13,"حيدر محمد احمد عبد العاطى‎","2074502 ","عامل ساعى‎","عامل ساعى",26510232801154,"غير مخاطب حاليا بقانون كادر المعلم",null,null,"1965-10-23","01280797436","الثالثة",null,"وظائف الخدمات المعاونة","محو أميه",null,null,null,null,null,null,"أسوان","دراو","بنبان الثانوية المشتركة","الثانوية","أسوان","مصرى","مسلم","ذكر","متزوج ويعول","المنصورية","على رأس عمله","أدى الخدمة",null,"2025-10-23"]
[14,"دعاء محمد صدقي حسن",2658532,"اخصائى نفسي","اخصائى ثانوى",28606212801446,"اخصائى نفسي",17,"2014-08-14","1986-06-21","01066258830","الثالثة","2014-08-14","الوظائف التخصصية للتعليم","دبلوم عام فى التربية‎"," دراسات عليا","2012-06-14","جامعة جنوب الوادى","جيد","2012-08-14","2014-09-22","أسوان","دراو","بنبان الثانوية المشتركة","الثانوية","أسوان","مصرى","مسلم","انثى","متزوج ويعول","الرقبة","على رأس عمله","أدى الخدمة",null,"2046-06-21"]
[15,"دلال احمد عبد المجيد احمد",2658538,"اخصائى صحافة واعلام","اخصائى اعدادى",28707202801121,"اخصائى صحافة واعلام",17,"2014-08-14","1987-07-20","01065754167","الثالثة","2014-08-14","الوظائف التخصصية للتعليم","دبلوم عام فى التربية‎"," دراسات عليا","2011-07-28","جامعة جنوب الوادى","جيد","2012-08-14","2014-09-22","أسوان","دراو","بنبان الثانوية المشتركة","الثانوية","أسوان","مصرى","مسلم","انثى","متزوج ويعول","المنصورية","على رأس عمله","أدى الخدمة",null,"2047-07-20"]
[16,"سامح محمد كمال الدين حسين محمود",2708463,"اخصائى مكتبات","امين مكتبة",27903242800453,"اخصائى مكتبات",17,"2014-08-14","1979-03-24","01274600111","الثالثة","2014-08-14","الوظائف التخصصية للتعليم","دبلوم عام فى التربية‎"," دراسات عليا","2010-12-25","جامعة جنوب الوادى","مقبول","2012-08-14","2014-09-22","أسوان","دراو","بنبان الثانوية المشتركة","الثانوية","أسوان","مصرى","مسلم","ذكر","متزوج ويعول","الرقبة","على رأس عمله","أدى الخدمة",null,"2039-03-24"]
[17,"سمير محمد منصور حسين",25431,"جغرافيا","مدرس ثانوى",26612142801152,"كبير معلمين",163,"2018-10-21","1966-12-14","01022632136","الاولى","2018-10-21","الوظائف التخصصية للتعليم","ليسانس اداب وتربية","عليا","1988-06-01","جامعة المنيا","مقبول","1990-10-01","1991-03-04","أسوان","دراو","بنبان الثانوية المشتركة","الثانوية","أسوان","مصرى","مسلم","ذكر","متزوج ويعول","الرقبة","على رأس عمله","أدى الخدمة",null,"2026-12-14"]
[18,"سناء موريس عطا الله قديس",33306,"اقتصاد منزلى","مدرس ثانوى",27509182800564,"معلم اول أ",40,"2014-08-14","1975-09-18","01279965445","الاولى","2014-08-14","الوظائف التخصصية للتعليم","بكالوريوس تربية نوعية","عليا","1998-06-01","جامعة جنوب الوادى","جيد","1999-02-10","1999-03-04","أسوان","دراو","بنبان الثانوية المشتركة","الثانوية","أسوان","مصرى","مسلم","انثى","متزوج ويعول","الرقبة","على رأس عمله","أدى الخدمة",null,"2035-09-18"]
[19,"سيده ابازيد محمود محمد",20629,"اخصائى اجتماعى","اخصائى اول ثانوى",26310192800401,"اخصائى خبير",163,"2018-10-21","1963-10-19","01149593035","الاولى","2018-10-21","الوظائف التخصصية للتعليم","بكالوريوس خدمة اجتماعية ","عليا","1995-05-01","جامعة القاهرة","مقبول","1994-09-13","1994-11-01","أسوان","دراو","بنبان الثانوية المشتركة","الثانوية","أسوان","مصرى","مسلم","انثى","متزوج ويعول","الرقبة","على رأس عمله","أدى الخدمة",null,"2023-10-19"]
[20,"شهيد يعقوب صالح عبد الشهيد",21951,"مجال زراعى","مدرس اعدادى",26411082800377,"معلم اول أ",40,"2014-08-14","1964-11-08","01004855127","الاولى","2014-08-14","الوظائف الفنية للتعليم","دبلوم فنى زراعى فوق متوسط","فوق متوسط","1994-06-01","وزارة التعليم العالى","مقبول","1989-05-20","1995-10-26","أسوان","دراو","بنبان الثانوية المشتركة","الثانوية","أسوان","مصرى","مسلم","ذكر","متزوج ويعول","بنبان بحرى","على رأس عمله","أدى الخدمة",null,"2024-11-08"]
[21,"صباح محمد ابراهيم محمود",32139,"تربية فنية","مدرس ثانوى",27403232800681,"معلم خبير",163,"2018-10-21","1974-03-23","01144038618","الاولى","2018-10-21","الوظائف التخصصية للتعليم","بكالوريوس تربية نوعيه","عليا","1996-06-01","جامعة جنوب الوادى","جيد","1996-09-01","1996-12-28","أسوان","دراو","بنبان الثانوية المشتركة","الثانوية","أسوان","مصرى","مسلم","انثى","متزوج ويعول","دراو","على رأس عمله","أدى الخدمة",null,"2034-03-23"]
[22,"صلاح عبدالرحيم سيد عبد الرحيم",21808,"مجال صناعى","فنى تدريس ثان أ",26410022800312,"معلم خبير",163,"2018-10-21","1964-10-02","01007122754","الاولى","2018-10-21","الوظائف الفنية للتعليم","دبلوم صناعة ثانوى","متوسطة","1982-07-22","وزارة التعليم العالى",0,"1987-06-30","1991-05-26","أسوان","دراو","بنبان الثانوية المشتركة","الثانوية","أسوان","مصرى","مسلم","ذكر","متزوج ويعول","الرقبة","على رأس عمله","أدى الخدمة",null,"2024-10-02"]
[23,"طارق عبدالمنعم شحات الامين‎",24116,"فنى معامل ثالث‎","فنى ثالث",26610191401396,"غير مخاطب حاليا بقانون كادر المعلم",null,null,"1966-10-19","01062215853","الثالثة",null,"المجموعة النوعية فنى معامل ثالث","دبلوم زراعة متوسطة‎",null,null,null,null,null,null,"أسوان","دراو","بنبان الثانوية المشتركة","الثانوية","القليوبية","مصرى","مسلم","ذكر","متزوج ويعول","دراو","على رأس عمله","أدى الخدمة",null,"2026-10-19"]
[24,"عبد السيد رمضان حسن رمضان",19432,"لغة عربية","وكيل مدرسة ثانوى",26210282800678,"معلم خبير",40,"2014-08-14","1962-10-28","01004375363","الاولى","2014-08-14","الوظائف التخصصية للتعليم","ليسانس اداب وتربية","عليا","1985-07-01","جامعة جنوب الوادى","جيد","1988-08-01","1988-11-12","أسوان","دراو","بنبان الثانوية المشتركة","الثانوية","أسوان","مصرى","مسلم","ذكر","متزوج ويعول","الرقبة","على رأس عمله","أدى الخدمة",null,"2022-10-28"]
[25,"عبدالجواد على عبداللطيف احمد",24817,"لغة عربية","وكيل مدرسة ثانوى",26705112800435,"كبير معلمين",163,"2018-10-21","1967-05-11","01003698741","الاولى","2018-10-21","الوظائف التخصصية للتعليم","ليسانس أداب وتربية","عليا","1989-06-01","جامعة اسيوط","جيد","1989-10-18","1991-09-14","أسوان","دراو","بنبان الثانوية المشتركة","الثانوية","أسوان","مصرى","مسلم","ذكر","متزوج ويعول","الرقبة","على رأس عمله","أدى الخدمة",null,"2027-05-11"]
[26,"عبد السيد نبيه عبدالسيد جرجس",25483,"احياء","مدرس اول ثانوى",26711192800678,"كبير معلمين",163,"2018-10-21","1967-11-19","01006427046","الاولى","2018-10-21","الوظائف التخصصية للتعليم","بكلوريوس علوم وتربية","عليا","1989-06-01","جامعة جنوب الوادى","جيد","1989-09-01","1989-11-22","أسوان","دراو","بنبان الثانوية المشتركة","الثانوية","أسوان","مصرى","مسلم","ذكر","متزوج ويعول","كوم امبو","على رأس عمله","أدى الخدمة",null,"2027-11-19"]
[27,"عبدالعاطى محمد عبدالودود حسن",28829,"فيزياء","مدرس اول ثانوى",27102022800239,"معلم خبير",163,"2018-10-21","1971-02-02","01064053855","الاولى","2018-10-21","الوظائف التخصصية للتعليم","بكلوريوس علوم وتربية","عليا","1994-06-02","جامعة اسيوط","مقبول","1994-09-01","1994-12-24","أسوان","دراو","بنبان الثانوية المشتركة","الثانوية","أسوان","مصرى","مسلم","ذكر","متزوج ويعول","كوم امبو","على رأس عمله","أدى الخدمة",null,"2031-02-02"]
[28,"علاء الدين احمد عبد الحليم محمد",23007,"لغة عربية","مدير مدرسة",26509212800552,"كبير معلمين",163,"2018-10-21","1965-09-21","01007359632","الاولى","2018-10-21","الوظائف التخصصية للتعليم","ليسانس آداب وتربية","عليا","1988-06-01","جامعة اسيوط","جيد","1988-12-01","1988-12-01","أسوان","دراو","بنبان الثانوية المشتركة","الثانوية","أسوان","مصرى","مسلم","ذكر","متزوج ويعول","دراو","على رأس عمله","أدى الخدمة",null,"2025-09-21"]
[29,"عيد محمد صدقي حسن",2994131,"فلسفة","مدرس ثانوى",28307312800938,"معلم ",3,"2016-02-14","1983-07-31","01068014120","الثالثة","2016-02-14","الوظائف التخصصية للتعليم","ليسانس دراسات +دبلوم عام في التربية","دراسات عليا","2014-10-01","جامعة الازهر","مقبول","2016-02-14","2016-02-14","أسوان","دراو","بنبان الثانوية المشتركة","الثانوية","أسوان","مصرى","مسلم","ذكر","متزوج ويعول","الرقبة","على رأس عمله","أدى الخدمة",null,"2043-07-31"]
[30,"فاطمه احمد محمد على احمد",27994,"لغة انجليزية","مدرس ثانوى",27004252800589,"معلم خبير",40,"2014-08-14","1970-04-25","01061000126","الاولى","2014-08-14","الوظائف التخصصية للتعليم","ليسانس اداب","عليا","1992-06-01","جامعة اسيوط","مقبول","1994-02-01","1994-11-28","أسوان","دراو","بنبان الثانوية المشتركة","الثانوية","أسوان","مصرى","مسلم","انثى","متزوج ويعول","الرقبة","على رأس عمله","أدى الخدمة",null,"2030-04-25"]
[31,"فوزى عيد عبداللطيف",25137,"تربية رياضية","مدرس اول اعدادى",26708112800159,"معلم خبير",163,"2018-10-21","1967-08-11","01009752082","الاولى","2018-10-21","الوظائف التخصصية للتعليم","بكالوريوس تربية‎","عليا","1987-06-01","جامعة جنوب الوادى","مقبول","1987-11-01","1987-11-30","أسوان","دراو","بنبان الثانوية المشتركة","الثانوية","أسوان","مصرى","مسلم","ذكر","متزوج ويعول","دراو","على رأس عمله","أدى الخدمة",null,"2027-08-11"]
[32,"كرم محمد عبدالرحيم محمد",21769,"فلسفة","مدرس اول ثانوى",26409192800599,"معلم خبير",163,"2018-10-21","1964-09-19","01222744044","الاولى","2018-10-21","الوظائف التخصصية للتعليم","ليسانس اداب","عليا","1988-05-01","جامعة اسيوط","جيد","1995-08-01","1996-03-18","أسوان","دراو","بنبان الثانوية المشتركة","الثانوية","أسوان","مصرى","مسلم","ذكر","متزوج ويعول","بنبان بحرى","على رأس عمله","أدى الخدمة",null,"2024-09-19"]
[33,"محسن عبدالسميع محمد احمد",34415,"لغة فرنسية","مدرس ثانوى",27703102800713,"معلم اول أ",163,"2018-10-21","1977-03-10","01157658055","الاولى","2018-10-21","الوظائف التخصصية للتعليم","ليسانس اداب وتربية","عليا","2000-07-01","جامعة سوهاج","مقبول","2004-07-01","2005-01-24","أسوان","دراو","بنبان الثانوية المشتركة","الثانوية","أسوان","مصرى","مسلم","ذكر","متزوج ويعول","بنبان بحرى","على رأس عمله","أدى الخدمة",null,"2037-03-10"]
[34,"محمد حسن رجب محمد",20178,"اخصائى اجتماعى","اخصائى اول ثانوى",26306062800054,"اخصائى خبير",40,"2014-08-14","1963-06-06","01009257555","الاولى","2014-08-14","الوظائف التخصصية للتعليم","بكالوريوس خدمة اجتماعية  وحاصل على برنامج ‎ التأهيل التربوى","عليا","1987-07-01","جامعة جنوب الوادى","جيد","1991-07-03","1995-04-09","أسوان","دراو","بنبان الثانوية المشتركة","الثانوية","أسوان","مصرى","مسلم","ذكر","متزوج ويعول","دراو","على رأس عمله","أدى الخدمة",null,"2023-06-06"]
[35,"محمد حسين عمر سليمان",20036,"مجال تجارى","مدرس اول اعدادى",26304162800318,"معلم اول أ",40,"2014-08-14","1963-04-16","01141459121","الاولى","2014-08-14","الوظائف التخصصية للتعليم","بكالوريوس تربية تجارى","عليا","2001-04-01","جامعة طنطا","مقبول","1999-11-28","2005-02-28","أسوان","دراو","بنبان الثانوية المشتركة","الثانوية","أسوان","مصرى","مسلم","ذكر","متزوج ويعول","بنبان بحرى","على رأس عمله","أدى الخدمة",null,"2023-04-16"]
[36,"محمد عبد القادر عوض الله احمد‎"," 22863 ","سكرتير","فنى رابع",26509021801753,"غير مخاطب حاليا بقانون كادر المعلم",null,null,"1965-09-02","01015582278","الرابعة",null,"المجموعة الفنية لوظائف الهندسة","دبلوم صناعة ثانوى‎",null,null,null,null,null,null,"أسوان","دراو","بنبان الثانوية المشتركة","الثانوية","البحيرة","مصرى","مسلم","ذكر","متزوج ويعول","بنبان بحرى","على رأس عمله","أدى الخدمة",null,"2025-09-02"]
[37,"محمد مصطفى محمد خير",2959195,"مسرح","معلم مساعد - تعيين",28706282800972,"معلم ",12,"2016-11-27","1987-06-28","01065857088","الثالثة","2016-11-27","الوظائف التخصصية للتعليم","بكالوريوس علوم + دبلوم عام في التربية","دراسات عليا","2012-09-02","جامعة جنوب الوادى","جيد","2016-11-27","2016-11-29","أسوان","دراو","بنبان الثانوية المشتركة","الثانوية","أسوان","مصرى","مسلم","ذكر","متزوج ويعول","دراو","على رأس عمله","أدى الخدمة",null,"2047-06-28"]
[38,"محمود احمد على موسى",33656,"لغة فرنسية","مدرس ثانوى",28411012801276,"معلم",17,"2014-09-18","1984-11-01",null,"الثالثة","2014-09-18","الوظائف التخصصية للتعليم","دبلوم خاص في التربية","دراسات عليا","2017-10-30","جامعة اسوان","جيد","2012-08-14","2014-09-23","أسوان","دراو","بنبان الثانوية المشتركة","الثانوية","أسوان","مصرى","مسلم","ذكر","متزوج ويعول","بنبان قبلى","على رأس عمله","أدى الخدمة",null,"2044-11-01"]
[39,"مدحت حسين احمد عبد المعطى",31679,"جغرافيا","مدرس اول أ ثانوى",27308222800435,"معلم خبير",163,"2018-10-21","1973-08-22","01154692169","الاولى","2018-10-21","الوظائف التخصصية للتعليم","ليسانس اداب + وحاصل على برنامج التأهيل التربوى","عليا","1995-06-01","جامعة المنيا","جيد","1995-08-01","1996-04-09","أسوان","دراو","بنبان الثانوية المشتركة","الثانوية","أسوان","مصرى","مسلم","ذكر","متزوج ويعول","بنبان قبلى","على رأس عمله","أدى الخدمة",null,"2033-08-22"]
[40,"مصطفى شحات عابدين محمد على",37970,"فيزياء","مدرس ثانوى",26905292800739,"معلم خبير",40,"2014-08-14","1969-05-29","01063267067","الاولى","2014-08-14","الوظائف التخصصية للتعليم","بكلوريوس علوم وتربية","عليا","1992-07-01","جامعة جنوب الوادى","جيد","1992-12-01","1993-04-12","أسوان","دراو","بنبان الثانوية المشتركة","الثانوية","أسوان","مصرى","مسلم","ذكر","متزوج ويعول","بنبان قبلى","على رأس عمله","أدى الخدمة",null,"2029-05-29"]
[41,"منصور غريب احمد محمد",36447,"رياضيات","مدرس اول أ اعدادى",28012172800657,"معلم اول أ",163,"2018-10-21","1980-12-17","01003671934","الاولى","2018-10-21","الوظائف التخصصية للتعليم","بكالوريوس علوم وتربية","عليا","2002-05-01","جامعة جنوب الوادى","جيد جدا","2003-10-01","2003-10-09","أسوان","دراو","بنبان الثانوية المشتركة","الثانوية","أسوان","مصرى","مسلم","ذكر","متزوج ويعول","بنبان بحرى","على رأس عمله","أدى الخدمة",null,"2040-12-17"]
[42,"هاشم احمد محمد على احمد",26871,"تاريخ","مدرس ثانوى",26903192800518,"معلم خبير",163,"2018-10-21","1969-03-19","01010043508","الاولى","2018-10-21","الوظائف التخصصية للتعليم","ليسانس اداب","عليا","1990-07-01","جامعة اسيوط","مقبول","1994-10-20","1997-01-20","أسوان","دراو","بنبان الثانوية المشتركة","الثانوية","أسوان","مصرى","مسلم","ذكر","متزوج ويعول","بنبان بحرى","على رأس عمله","أدى الخدمة",null,"2029-03-19"]
[43,"حيدر محمد احمد عبد العاطى‎","2074502 ","عامل ساعى‎","عامل ساعى‎",26510232801154,"عامل ساعى‎",null,null,"1965-10-23","01280797436",null,null,"الوظائف التخصصية للتعليم","محو أميه",null,null,null,null,null,null,"أسوان","دراو","بنبان الثانوية المشتركة","الثانوية","أسوان","مصرى","مسلم","ذكر","متزوج ويعول","المنصورية","على رأس عمله","أدى الخدمة",null,"2025-10-23"]
["",null,null,null,null,null,null,null,null,"",null,null,null,null,null,null,null,null,null,null,null,null,null,null,null,"",null,null,""]
["",null,null,null,null,null,null,null,null,"",null,null,null,null,null,null,null,null,null,null,null,null,null,null,null,"",null,null,""]
["",null,null,null,null,null,null,null,null,"",null,null,null,null,null,null,null,null,null,null,null,null,null,null,null,"",null,null,""]
["",null,null,null,null,null,null,null,null,"",null,null,null,null,null,null,null,null,null,null,null,null,null,null,null,"",null,null,""]
["",null,null,null,null,null,null,null,null,"",null,null,null,null,null,null,null,null,null,null,null,null,null,null,null,"",null,null,""]
["",null,null,null,null,null,null,null,null,"",null,null,null,null,null,null,null,null,null,null,null,null,null,null,null,"",null,null,""]
["",null,null,null,null,null,null,null,null,"",null,null,null,null,null,null,null,null,null,null,null,null,null,null,null,"",null,null,""]
["",null,null,null,null,null,null,null,null,"",null,null,null,null,null,null,null,null,null,null,null,null,null,null,null,"",null,null,""]
["",null,null,null,null,null,null,null,null,"",null,null,null,null,null,null,null,null,null,null,null,null,null,null,null,"",null,null,""]
["",null,null,null,null,null,null,null,null,"",null,null,null,null,null,null,null,null,null,null,null,null,null,null,null,"",null,null,""]
["",null,null,null,null,null,null,null,null,"",null,null,null,null,null,null,null,null,null,null,null,null,null,null,null,"",null,null,""]
["",null,null,null,null,null,null,null,null,"",null,null,null,null,null,null,null,null,null,null,null,null,null,null,null,"",null,null,""]
["",null,null,null,null,null,null,null,null,"",null,null,null,null,null,null,null,null,null,null,null,null,null,null,null,"",null,null,""]
["",null,null,null,null,null,null,null,null,"",null,null,null,null,null,null,null,null,null,null,null,null,null,null,null,"",null,null,""]
["",null,null,null,null,null,null,null,null,"",null,null,null,null,null,null,null,null,null,null,null,null,null,null,null,"",null,null,""]
["",null,null,null,null,null,null,null,null,"",null,null,null,null,null,null,null,null,null,null,null,null,null,null,null,"",null,null,""]
["",null,null,null,null,null,null,null,null,"",null,null,null,null,null,null,null,null,null,null,null,null,null,null,null,"",null,null,""]
["",null,null,null,null,null,null,null,null,"",null,null,null,null,null,null,null,null,null,null,null,null,null,null,null,"",null,null,""]
["",null,null,null,null,null,null,null,null,"",null,null,null,null,null,null,null,null,null,null,null,null,null,null,null,"",null,null,""]
["",null,null,null,null,null,null,null,null,"",null,null,null,null,null,null,null,null,null,null,null,null,null,null,null,"",null,null,""]
["",null,null,null,null,null,null,null,null,"",null,null,null,null,null,null,null,null,null,null,null,null,null,null,null,"",null,null,""]
["",null,null,null,null,null,null,null,null,"",null,null,null,null,null,null,null,null,null,null,null,null,null,null,null,"",null,null,""]
[{"$f":"IF(B70=\"\",\"\",ROW()-4)","v":""},null,null,null,null,null,null,null,null,"",null,null,null,null,null,null,null,null,null,null,null,null,null,null,null,{"$f":"Kh_Date_Sex_Province($F70,3)","v":""},null,null,{"$f":"IF(LEN(TRIM($F70))=0,\"\",IF(OR(NOT(ISNUMBER($F70)),LEN($F70)<>14),\"قومي خطأ\",IF(MOD(MID($F70,13,1),2)=1,\"ذكر\",\"انثى\")))","v":""}]
["",null,null,null,null,null,null,null,null,{"$f":"IF(F71=\"\",\"\",DATE(IF(LEFT(F71,1)*1=3,20,19)&MID(F71,2,2),MID(F71,4,2),MID(F71,6,2)))","v":""},null,null,null,null,null,null,null,null,null,null,null,null,null,null,null,"",null,null,""]
["",null,null,null,null,null,null,null,null,"",null,null,null,null,null,null,null,null,null,null,null,null,null,null,null,"",null,null,""]
["",null,null,null,null,null,null,null,null,"",null,null,null,null,null,null,null,null,null,null,null,null,null,null,null,"",null,null,""]
["",null,null,null,null,null,null,null,null,"",null,null,null,null,null,null,null,null,null,null,null,null,null,null,null,"",null,null,""]
["",null,null,null,null,null,null,null,null,"",null,null,null,null,null,null,null,null,null,null,null,null,null,null,null,"",null,null,""]
["",null,null,null,null,null,null,null,null,"",null,null,null,null,null,null,null,null,null,null,null,null,null,null,null,"",null,null,""]
["",null,null,null,null,null,null,null,null,"",null,null,null,null,null,null,null,null,null,null,null,null,null,null,null,"",null,null,""]
["",null,null,null,null,null,null,null,null,"",null,null,null,null,null,null,null,null,null,null,null,null,null,null,null,"",null,null,""]
["",null,null,null,null,null,null,null,null,"",null,null,null,null,null,null,null,null,null,null,null,null,null,null,null,"",null,null,""]
["",null,null,null,null,null,null,null,null,"",null,null,null,null,null,null,null,null,null,null,null,null,null,null,null,"",null,null,""]
["",null,null,null,null,null,null,null,null,"",null,null,null,null,null,null,null,null,null,null,null,null,null,null,null,"",null,null,""]
["",null,null,null,null,null,null,null,null,"",null,null,null,null,null,null,null,null,null,null,null,null,null,null,null,"",null,null,""]
["",null,null,null,null,null,null,null,null,"",null,null,null,null,null,null,null,null,null,null,null,null,null,null,null,"",null,null,""]
["",null,null,null,null,null,null,null,null,"",null,null,null,null,null,null,null,null,null,null,null,null,null,null,null,"",null,null,""]
["",null,null,null,null,null,null,null,null,"",null,null,null,null,null,null,null,null,null,null,null,null,null,null,null,"",null,null,""]
["",null,null,null,null,null,null,null,null,"",null,null,null,null,null,null,null,null,null,null,null,null,null,null,null,"",null,null,""]
["",null,null,null,null,null,null,null,null,"",null,null,null,null,null,null,null,null,null,null,null,null,null,null,null,"",null,null,""]
["",null,null,null,null,null,null,null,null,"",null,null,null,null,null,null,null,null,null,null,null,null,null,null,null,"",null,null,""]
["",null,null,null,null,null,null,null,null,"",null,null,null,null,null,null,null,null,null,null,null,null,null,null,null,"",null,null,""]
["",null,null,null,null,null,null,null,null,"",null,null,null,null,null,null,null,null,null,null,null,null,null,null,null,"",null,null,""]
["",null,null,null,null,null,null,null,null,"",null,null,null,null,null,null,null,null,null,null,null,null,null,null,null,"",null,null,""]
["",null,null,null,null,null,null,null,null,"",null,null,null,null,null,null,null,null,null,null,null,null,null,null,null,"",null,null,""]
["",null,null,null,null,null,null,null,null,"",null,null,null,null,null,null,null,null,null,null,null,null,null,null,null,"",null,null,""]
["",null,null,null,null,null,null,null,null,"",null,null,null,null,null,null,null,null,null,null,null,null,null,null,null,"",null,null,""]
["",null,null,null,null,null,null,null,null,"",null,null,null,null,null,null,null,null,null,null,null,null,null,null,null,"",null,null,""]
["",null,null,null,null,null,null,null,null,"",null,null,null,null,null,null,null,null,null,null,null,null,null,null,null,"",null,null,""]
["",null,null,null,null,null,null,null,null,"",null,null,null,null,null,null,null,null,null,null,null,null,null,null,null,"",null,null,""]
["",null,null,null,null,null,null,null,null,"",null,null,null,null,null,null,null,null,null,null,null,null,null,null,null,"",null,null,""]
["",null,null,null,null,null,null,null,null,"",null,null,null,null,null,null,null,null,null,null,null,null,null,null,null,"",null,null,""]
["",null,null,null,null,null,null,null,null,"",null,null,null,null,null,null,null,null,null,null,null,null,null,null,null,"",null,null,""]
["",null,null,null,null,null,null,null,null,"",null,null,null,null,null,null,null,null,null,null,null,null,null,null,null,"",null,null,""]
["",null,null,null,null,null,null,null,null,"",null,null,null,null,null,null,null,null,null,null,null,null,null,null,null,"",null,null,""]
["",null,null,null,null,null,null,null,null,"",null,null,null,null,null,null,null,null,null,null,null,null,null,null,null,"",null,null,""]
["",null,null,null,null,null,null,null,null,"",null,null,null,null,null,null,null,null,null,null,null,null,null,null,null,"",null,null,""]
["",null,null,null,null,null,null,null,null,"",null,null,null,null,null,null,null,null,null,null,null,null,null,null,null,"",null,null,""]
["",null,null,null,null,null,null,null,null,"",null,null,null,null,null,null,null,null,null,null,null,null,null,null,null,"",null,null,""]
["",null,null,null,null,null,null,null,null,"",null,null,null,null,null,null,null,null,null,null,null,null,null,null,null,"",null,null,""]
["",null,null,null,null,null,null,null,null,"",null,null,null,null,null,null,null,null,null,null,null,null,null,null,null,"",null,null,""]
["",null,null,null,null,null,null,null,null,"",null,null,null,null,null,null,null,null,null,null,null,null,null,null,null,"",null,null,""]
["",null,null,null,null,null,null,null,null,"",null,null,null,null,null,null,null,null,null,null,null,null,null,null,null,"",null,null,""]
["",null,null,null,null,null,null,null,null,"",null,null,null,null,null,null,null,null,null,null,null,null,null,null,null,"",null,null,""]
["",null,null,null,null,null,null,null,null,"",null,null,null,null,null,null,null,null,null,null,null,null,null,null,null,"",null,null,""]
["",null,null,null,null,null,null,null,null,"",null,null,null,null,null,null,null,null,null,null,null,null,null,null,null,"",null,null,""]
["",null,null,null,null,null,null,null,null,"",null,null,null,null,null,null,null,null,null,null,null,null,null,null,null,"",null,null,""]
["",null,null,null,null,null,null,null,null,"",null,null,null,null,null,null,null,null,null,null,null,null,null,null,null,"",null,null,""]
["",null,null,null,null,null,null,null,null,"",null,null,null,null,null,null,null,null,null,null,null,null,null,null,null,"",null,null,""]
["",null,null,null,null,null,null,null,null,"",null,null,null,null,null,null,null,null,null,null,null,null,null,null,null,"",null,null,""]
["",null,null,null,null,null,null,null,null,"",null,null,null,null,null,null,null,null,null,null,null,null,null,null,null,"",null,null,""]
["",null,null,null,null,null,null,null,null,"",null,null,null,null,null,null,null,null,null,null,null,null,null,null,null,"",null,null,""]
["",null,null,null,null,null,null,null,null,"",null,null,null,null,null,null,null,null,null,null,null,null,null,null,null,"",null,null,""]

{"sheet":"طباعة بيان حالة معلم","index":1,"n_rows":32,"n_cols":15,"rows_kept":32,"cut":false,"hidden":false,"merged":[[9,7,9,9],[10,0,10,8],[1,3,1,6],[2,1,2,2],[2,7,2,8],[4,0,4,8],[5,1,5,4],[5,7,5,8],[31,2,31,3],[31,6,31,8],[3,7,3,8],[18,3,18,8],[22,6,22,8],[21,0,21,8],[22,1,22,3],[23,0,23,2],[23,3,23,9],[11,2,11,5],[16,0,16,8],[17,1,17,3],[19,1,19,3],[19,6,19,9],[9,1,9,2],[9,5,9,6]]}
[]
[null,null,null,"بيان حالة وظيفية "]
["المديرية :",{"$f":"IF(ISERROR(MATCH($B$7,INDEX(بيانات1,0,2),0)),\"\",INDEX(بيانات1,MATCH($B$7,INDEX(بيانات1,0,2),0),22))","v":"أسوان"},null,null,null,null,"الإدارة :",{"$f":"IF(ISERROR(MATCH($B$7,INDEX(بيانات1,0,2),0)),\"\",INDEX(بيانات1,MATCH($B$7,INDEX(بيانات1,0,2),0),23))","v":"دراو"}]
["جهة العمل :","بنبان الثانوية المشتركة",null,null,null,null,"المرحلة :",{"$f":"IF(ISERROR(MATCH($B$7,INDEX(بيانات1,0,2),0)),\"\",INDEX(بيانات1,MATCH($B$7,INDEX(بيانات1,0,2),0),25))","v":"الثانوية"}]
["البيانات الشخصية",null,null,null,null,null,null,null,null,null,null,null,null,null,"سيده ابازيد محمود محمد"]
["الكود  : ",{"$f":"IF(ISERROR(MATCH($B$7,INDEX(بيانات1,0,2),0)),\"\",INDEX(بيانات1,MATCH($B$7,INDEX(بيانات1,0,2),0),3))","v":26946},null,null,null,"  الرقم القومي : ",null,{"$f":"IF(ISERROR(MATCH($B$7,INDEX(بيانات1,0,2),0)),\"\",INDEX(بيانات1,MATCH($B$7,INDEX(بيانات1,0,2),0),6))","v":26904132800281}]
["الاسم  : ",{"$f":"VLOOKUP($O$8,NAME,1,0)","v":"ازهار محمد احمد حسين"},null,null,null,"تاريخ الميلاد :",{"$f":"IF(ISERROR(MATCH($B$7,INDEX(بيانات1,0,2),0)),\"\",INDEX(بيانات1,MATCH($B$7,INDEX(بيانات1,0,2),0),10))","v":"1969-04-13"},"الحالة الاجتماعية:",{"$f":"IF(ISERROR(MATCH($B$7,INDEX(بيانات1,0,2),0)),\"\",INDEX(بيانات1,MATCH($B$7,INDEX(بيانات1,0,2),0),30))","v":"متزوج ويعول"},null,null,null,null,null,"عبدالجواد على عبداللطيف احمد"]
[null,null,null,null,null,null,null,null,null,null,null,null,null,null,"ازهار محمد احمد حسين"]
["محل الميلاد  : ",{"$f":"IF(ISERROR(MATCH($B$7,INDEX(بيانات1,0,2),0)),\"\",INDEX(بيانات1,MATCH($B$7,INDEX(بيانات1,0,2),0),26))","v":"أسوان"},"النوع :",{"$f":"IF(ISERROR(MATCH($B$7,INDEX(بيانات1,0,2),0)),\"\",INDEX(بيانات1,MATCH($B$7,INDEX(بيانات1,0,2),0),29))","v":"انثى"},"الديانة :",{"$f":"IF(ISERROR(MATCH($B$7,INDEX(بيانات1,0,2),0)),\"\",INDEX(بيانات1,MATCH($B$7,INDEX(بيانات1,0,2),0),28))","v":"مسلم"},"الجنسية :",{"$f":"IF(ISERROR(MATCH($B$7,INDEX(بيانات1,0,2),0)),\"\",INDEX(بيانات1,MATCH($B$7,INDEX(بيانات1,0,2),0),27))","v":"مصرى"},null,null,null,null,null,null,"فاطمه احمد محمد على احمد"]
["م العنوان : ",{"$f":"IF(ISERROR(MATCH($B$7,INDEX(بيانات1,0,2),0)),\"\",INDEX(بيانات1,MATCH($B$7,INDEX(بيانات1,0,2),0),31))","v":"الرقبة"},null,null,null,"التليفون :",null,{"$f":"IF(ISERROR(MATCH($B$7,INDEX(بيانات1,0,2),0)),\"\",INDEX(بيانات1,MATCH($B$7,INDEX(بيانات1,0,2),0),11))","v":"01015521345"}]
["البيانات الوظيفية"]
["المجموعـــة النوعية : ",null,{"$f":"IF(ISERROR(MATCH($B$7,INDEX(بيانات1,0,2),0)),\"\",INDEX(بيانات1,MATCH($B$7,INDEX(بيانات1,0,2),0),14))","v":"الوظائف التخصصية للتعليم"}]
["تاريــــــخ التعيين : ",null,{"$f":"IF(ISERROR(MATCH($B$7,INDEX(بيانات1,0,2),0)),\"\",INDEX(بيانات1,MATCH($B$7,INDEX(بيانات1,0,2),0),20))","v":"1991-09-01"},"الموقف من العمل :",null,{"$f":"IF(ISERROR(MATCH($B$7,INDEX(بيانات1,0,2),0)),\"\",INDEX(بيانات1,MATCH($B$7,INDEX(بيانات1,0,2),0),32))","v":"على رأس عمله"},"تاريخ استلام العمل : ",null,{"$f":"IF(ISERROR(MATCH($B$7,INDEX(بيانات1,0,2),0)),\"\",INDEX(بيانات1,MATCH($B$7,INDEX(بيانات1,0,2),0),21))","v":"1992-01-11"}]
["الوظيفة الحالية  : ",null,{"$f":"IF(ISERROR(MATCH($B$7,INDEX(بيانات1,0,2),0)),\"\",INDEX(بيانات1,MATCH($B$7,INDEX(بيانات1,0,2),0),7))","v":"معلم اول أ"},"رقم القرار :",{"$f":"IF(ISERROR(MATCH($B$7,INDEX(بيانات1,0,2),0)),\"\",INDEX(بيانات1,MATCH($B$7,INDEX(بيانات1,0,2),0),8))","v":163},null,"تاريخ الوظيفة : ",null,{"$f":"IF(ISERROR(MATCH($B$7,INDEX(بيانات1,0,2),0)),\"\",INDEX(بيانات1,MATCH($B$7,INDEX(بيانات1,0,2),0),9))","v":"2018-10-21"}]
[]
[]
["بيانات المؤهل الاصلى"]
["نوع المؤهل : ",{"$f":"IF(ISERROR(MATCH($B$7,INDEX(بيانات1,0,2),0)),\"\",INDEX(بيانات1,MATCH($B$7,INDEX(بيانات1,0,2),0),16))","v":"عليا"},null,null,"اسم المؤهل : ",null,{"$f":"IF(ISERROR(MATCH($B$7,INDEX(بيانات1,0,2),0)),\"\",INDEX(بيانات1,MATCH($B$7,INDEX(بيانات1,0,2),0),15))","v":"ليسانس اداب وتربية"}]
["جهة الحصول على المؤهل : ",null,null,{"$f":"IF(ISERROR(MATCH($B$7,INDEX(بيانات1,0,2),0)),\"\",INDEX(بيانات1,MATCH($B$7,INDEX(بيانات1,0,2),0),18))","v":"جامعة اسيوط"}]
["تقدير المؤهل: ",{"$f":"IF(ISERROR(MATCH($B$7,INDEX(بيانات1,0,2),0)),\"\",INDEX(بيانات1,MATCH($B$7,INDEX(بيانات1,0,2),0),19))","v":"مقبول"},null,null,"تاريخ الحصول عليه : ",null,{"$f":"IF(ISERROR(MATCH($B$7,INDEX(بيانات1,0,2),0)),\"\",INDEX(بيانات1,MATCH($B$7,INDEX(بيانات1,0,2),0),17))","v":"1991-06-01"}]
[]
["بيانات أخر مؤهل"]
["نوع المؤهل : ",{"$f":"IF(ISERROR(MATCH($B$6,INDEX(بيانات1,0,2),0)),\"\",INDEX(بيانات1,MATCH($B$6,INDEX(بيانات1,0,2),0),5))","v":""},null,null,"اسم المؤهل : "]
["جهة الحصول على المؤهل : "]
["تاريخ الحصول عليه : ",null,{"$f":"IF(ISERROR(MATCH($B$6,INDEX(بيانات1,0,2),0)),\"\",INDEX(بيانات1,MATCH($B$6,INDEX(بيانات1,0,2),0),5))","v":""},null,null,null,"تاريخ الإحالة للمعاش :",null,{"$f":"IF(ISERROR(MATCH($B$7,INDEX(بيانات1,0,2),0)),\"\",INDEX(بيانات1,MATCH($B$7,INDEX(بيانات1,0,2),0),35))","v":"2029-04-13"}]
[]
["الجزاءات : ","1:",{"$f":"IF(ISERROR(MATCH($B$6,INDEX(بيانات1,0,2),0)),\"\",INDEX(بيانات1,MATCH($B$6,INDEX(بيانات1,0,2),0),35))","v":""},null,null,"2:"]
[]
[null,"3:",null,null,null,"4:"]
[]
["توقيع المعلم ",null,"توقيع رئيس قسم الملفات",null,null,null,"يعتمد ، مدير شئون العاملين بالإدارة"]
["......................",null,"......................",null,null,null,"......................"]

{"sheet":"طباعة شهادة خبرة","index":2,"n_rows":29,"n_cols":15,"rows_kept":29,"cut":false,"hidden":false,"merged":[[1,3,1,6],[5,1,5,4],[5,7,5,8],[11,2,11,5],[17,1,17,3],[2,7,2,8],[4,0,4,8],[2,1,2,2],[6,7,6,8],[6,5,6,6],[3,1,3,2],[9,1,9,2],[9,5,9,6],[3,7,3,8],[9,7,9,9],[11,7,11,9],[25,2,25,8],[22,0,22,1],[24,0,24,1],[28,4,28,5],[28,2,28,3],[28,6,28,8],[23,0,23,1],[23,2,23,9],[24,2,24,9],[10,0,10,8],[16,0,16,8],[17,6,17,9],[22,2,22,9],[21,0,21,8],[19,1,19,3],[19,6,19,9],[18,3,18,8]]}
[]
[null,null,null,"شهادة خبرة"]
["المديرية :",{"$f":"IF(ISERROR(MATCH($B$7,INDEX(بيانات1,0,2),0)),\"\",INDEX(بيانات1,MATCH($B$7,INDEX(بيانات1,0,2),0),22))","v":"أسوان"},null,null,null,null,"الإدارة :",{"$f":"IF(ISERROR(MATCH($B$7,INDEX(بيانات1,0,2),0)),\"\",INDEX(بيانات1,MATCH($B$7,INDEX(بيانات1,0,2),0),23))","v":"دراو"}]
["جهة العمل :",{"$f":"IF(ISERROR(MATCH($B$7,INDEX(بيانات1,0,2),0)),\"\",INDEX(بيانات1,MATCH($B$7,INDEX(بيانات1,0,2),0),24))","v":"بنبان الثانوية المشتركة"},null,null,null,null,"المرحلة :",{"$f":"IF(ISERROR(MATCH($B$7,INDEX(بيانات1,0,2),0)),\"\",INDEX(بيانات1,MATCH($B$7,INDEX(بيانات1,0,2),0),25))","v":"الثانوية"}]
["البيانات الشخصية"]
["الكود  : ",{"$f":"IF(ISERROR(MATCH($B$7,INDEX(بيانات1,0,2),0)),\"\",INDEX(بيانات1,MATCH($B$7,INDEX(بيانات1,0,2),0),3))","v":36420},null,null,null,"  الرقم القومي : ",null,{"$f":"IF(ISERROR(MATCH($B$7,INDEX(بيانات1,0,2),0)),\"\",INDEX(بيانات1,MATCH($B$7,INDEX(بيانات1,0,2),0),6))","v":28012162800551}]
["الاسم  : ",{"$f":"VLOOKUP($O$8,NAME,1,0)","v":"الحسن ربيع جادالكريم توفيق"},null,null,null,"الديانة :",null,{"$f":"IF(ISERROR(MATCH($B$7,INDEX(بيانات1,0,2),0)),\"\",INDEX(بيانات1,MATCH($B$7,INDEX(بيانات1,0,2),0),10))","v":"1980-12-16"},null,null,null,null,null,null,"عبدالجواد على عبداللطيف احمد"]
[null,null,null,null,null,null,null,null,null,null,null,null,null,null,"الحسن ربيع جادالكريم توفيق"]
["محل الميلاد  : ",{"$f":"IF(ISERROR(MATCH($B$7,INDEX(بيانات1,0,2),0)),\"\",INDEX(بيانات1,MATCH($B$7,INDEX(بيانات1,0,2),0),26))","v":"أسوان"},"النوع :",{"$f":"IF(ISERROR(MATCH($B$7,INDEX(بيانات1,0,2),0)),\"\",INDEX(بيانات1,MATCH($B$7,INDEX(بيانات1,0,2),0),29))","v":"ذكر"},null,"الجنسية :",{"$f":"IF(ISERROR(MATCH($B$7,INDEX(بيانات1,0,2),0)),\"\",INDEX(بيانات1,MATCH($B$7,INDEX(بيانات1,0,2),0),27))","v":"مصرى"},"الحالة الاجتماعية:",{"$f":"IF(ISERROR(MATCH($B$7,INDEX(بيانات1,0,2),0)),\"\",INDEX(بيانات1,MATCH($B$7,INDEX(بيانات1,0,2),0),30))","v":"متزوج ويعول"},null,null,null,null,null,"عبد السيد رمضان حسن رمضان"]
["م العنوان : ",{"$f":"IF(ISERROR(MATCH($B$7,INDEX(بيانات1,0,2),0)),\"\",INDEX(بيانات1,MATCH($B$7,INDEX(بيانات1,0,2),0),31))","v":"بنبان قبلى"},null,null,null,"التليفون :",null,{"$f":"IF(ISERROR(MATCH($B$7,INDEX(بيانات1,0,2),0)),\"\",INDEX(بيانات1,MATCH($B$7,INDEX(بيانات1,0,2),0),11))","v":"01009519510"}]
["البيانات الوظيفية"]
["المجموعـــة النوعية : ",null,{"$f":"IF(ISERROR(MATCH($B$7,INDEX(بيانات1,0,2),0)),\"\",INDEX(بيانات1,MATCH($B$7,INDEX(بيانات1,0,2),0),14))","v":"الوظائف التخصصية للتعليم"},null,null,null,"التخصص:",{"$f":"IF(ISERROR(MATCH($B$7,INDEX(بيانات1,0,2),0)),\"\",INDEX(بيانات1,MATCH($B$7,INDEX(بيانات1,0,2),0),4))","v":"حاسب آلى"}]
["تاريــــــخ التعيين : ",null,{"$f":"IF(ISERROR(MATCH($B$7,INDEX(بيانات1,0,2),0)),\"\",INDEX(بيانات1,MATCH($B$7,INDEX(بيانات1,0,2),0),20))","v":"2004-07-01"},"الموقف من العمل :",null,{"$f":"IF(ISERROR(MATCH($B$7,INDEX(بيانات1,0,2),0)),\"\",INDEX(بيانات1,MATCH($B$7,INDEX(بيانات1,0,2),0),32))","v":"على رأس عمله"},"تاريخ استلام العمل : ",null,{"$f":"IF(ISERROR(MATCH($B$7,INDEX(بيانات1,0,2),0)),\"\",INDEX(بيانات1,MATCH($B$7,INDEX(بيانات1,0,2),0),21))","v":"2004-07-01"}]
["الوظيفة الحالية  : ",null,{"$f":"IF(ISERROR(MATCH($B$7,INDEX(بيانات1,0,2),0)),\"\",INDEX(بيانات1,MATCH($B$7,INDEX(بيانات1,0,2),0),7))","v":"معلم اول أ"},"رقم القرار :",{"$f":"IF(ISERROR(MATCH($B$7,INDEX(بيانات1,0,2),0)),\"\",INDEX(بيانات1,MATCH($B$7,INDEX(بيانات1,0,2),0),8))","v":163},null,"تاريخ الوظيفة : ",null,{"$f":"IF(ISERROR(MATCH($B$7,INDEX(بيانات1,0,2),0)),\"\",INDEX(بيانات1,MATCH($B$7,INDEX(بيانات1,0,2),0),9))","v":"2018-10-21"}]
[]
[]
["بيانات المؤهل الاصلى"]
["اسم المؤهل : ",{"$f":"IF(ISERROR(MATCH($B$7,INDEX(بيانات1,0,2),0)),\"\",INDEX(بيانات1,MATCH($B$7,INDEX(بيانات1,0,2),0),15))","v":"بكالوريوس تربية نوعية"},null,null,"نوع المؤهل : ",null,{"$f":"IF(ISERROR(MATCH($B$7,INDEX(بيانات1,0,2),0)),\"\",INDEX(بيانات1,MATCH($B$7,INDEX(بيانات1,0,2),0),16))","v":"عليا"}]
["جهة الحصول على المؤهل : ",null,null,{"$f":"IF(ISERROR(MATCH($B$7,INDEX(بيانات1,0,2),0)),\"\",INDEX(بيانات1,MATCH($B$7,INDEX(بيانات1,0,2),0),18))","v":"جامعة جنوب الوادى"}]
["تقدير المؤهل: ",{"$f":"IF(ISERROR(MATCH($B$7,INDEX(بيانات1,0,2),0)),\"\",INDEX(بيانات1,MATCH($B$7,INDEX(بيانات1,0,2),0),19))","v":"جيد"},null,null,"تاريخ الحصول عليه : ",null,{"$f":"IF(ISERROR(MATCH($B$7,INDEX(بيانات1,0,2),0)),\"\",INDEX(بيانات1,MATCH($B$7,INDEX(بيانات1,0,2),0),17))","v":"2001-06-01"}]
[]
["بيانات أخر مؤهل"]
["التفتيش التابع له :",null,{"$f":"IF(ISERROR(MATCH($B$7,INDEX(بيانات1,0,2),0)),\"\",INDEX(بيانات1,MATCH($B$7,INDEX(بيانات1,0,2),0),23))","v":"دراو"}]
["الجزاءات :",null,"لا يوجد"]
["الموقف من التجنيد :",null,{"$f":"IF(ISERROR(MATCH($B$7,INDEX(بيانات1,0,2),0)),\"\",INDEX(بيانات1,MATCH($B$7,INDEX(بيانات1,0,2),0),33))","v":"أدى الخدمة"}]
["سبب طلب الشهادة :",null,"إلى من يهمه الأمــــــــــــــــــر"]
[]
["المختص",null,"رئيس الوحدة",null," مدير شئون العاملين بالإدارة",null,null,null,"يعتمد مدير الإدارة"]
["......................",null,"......................",null,"......................",null,"......................"]

{"sheet":"إحصاء","index":3,"n_rows":32,"n_cols":5,"rows_kept":32,"cut":false,"hidden":false,"merged":[[7,1,7,2],[8,1,8,2],[9,1,9,2],[10,1,10,4],[31,1,31,2]]}
[]
[]
[]
[]
[]
[]
[]
[null,{"$f":"[1]البيانات!G14","v":"مديرية التربية والتعليم بأسوان"}]
[null,{"$f":"[1]البيانات!G19","v":"ادارة دراو التعليمية"},null,null,"العـــام الدراسي "]
[null,{"$f":"[1]البيانات!G25","v":"مدرسة بنبان الثانوية"},null,null,{"$f":"[1]البيانات!G31","v":"2020/2019"}]
[null,"حصر أعداد الموظفين على مستوى المدرسة"]
[null,"م","التخصص","عدد المعلمين","ملاحظات"]
[null,{"$f":"IF(C13=\"\",\"\",ROW()-12)","v":1},"الاخصائيين",{"$f":"COUNTIF('بيانات المدرسين'!G5:G120,\"كبير معلمين\")","v":5}]
[null,{"$f":"IF(C14=\"\",\"\",ROW()-12)","v":2},"الاداريين"]
[null,3,"العمال"]
[null,4,"القيادة"]
[null,5,"الحاسب الآلي"]
[null,6,"الجغرافيا"]
[null,7,"الرياضيات"]
[null,8,"العلوم"]
[null,9,"اللغة العربية"]
[null,10,"اللغة الانجليزية"]
[null,11,"اللغة الفرنسية"]
[null,12,"التربية الرياضية"]
[null,13,"التاريخ"]
[null,14,"الفلسفة"]
[null,15,"علم النفس"]
[null,16,"التربية الموسيقية"]
[null,17,"التربية الفنية"]
[null,18,"المجالات"]
[null,19,"الاخرى"]
[null,"الاجمالى",null,{"$f":"SUM(D13:D31)","v":5}]

{"sheet":"إحصاء درجة","index":4,"n_rows":25,"n_cols":5,"rows_kept":25,"cut":false,"hidden":false,"merged":[[7,1,7,2],[8,1,8,2],[9,1,9,2],[10,1,10,4],[24,1,24,2]]}
[]
[]
[]
[]
[]
[]
[]
[null,{"$f":"[1]البيانات!G14","v":"مديرية التربية والتعليم بأسوان"}]
[null,{"$f":"[1]البيانات!G19","v":"ادارة دراو التعليمية"},null,null,"العـــام الدراسي "]
[null,{"$f":"[1]البيانات!G25","v":"مدرسة بنبان الثانوية"},null,null,{"$f":"[1]البيانات!G31","v":"2020/2019"}]
[null,"حصر أعداد الموظفين على مستوى المدرسة"]
[null,"م","التخصص","عدد المعلمين","ملاحظات"]
[null,{"$f":"IF(C13=\"\",\"\",ROW()-12)","v":1},"كبير معلمين",{"$f":"COUNTIF('بيانات المدرسين'!$G$5:$G$120,\"كبير معلمين\")","v":5}]
[null,null,"كبير اخصائيين",{"$f":"COUNTIF('بيانات المدرسين'!$G$5:$G$120,\"كبير اخصائيين\")","v":0}]
[null,{"$f":"IF(C15=\"\",\"\",ROW()-12)","v":3},"معلم خبير",{"$f":"COUNTIF('بيانات المدرسين'!$G$5:$G$120,\"معلم خبير\")","v":13}]
[null,null,"اخصائى خبير",{"$f":"COUNTIF('بيانات المدرسين'!$G$5:$G$120,\"اخصائى خبير \")","v":0}]
[null,5,"معلم اول أ",{"$f":"COUNTIF('بيانات المدرسين'!$G$5:$G$120,\"معلم اول أ\")","v":9}]
[null,null,"اخصائى اول أ",{"$f":"COUNTIF('بيانات المدرسين'!$G$5:$G$120,\"اخصائى اول أ\")","v":1}]
[null,7,"معلم اول ",{"$f":"COUNTIF('بيانات المدرسين'!$G$5:$G$120,\"معلم اول\")","v":1}]
[null,null,"اخصائى اول",{"$f":"COUNTIF('بيانات المدرسين'!$G$5:$G$120,\"اخصائى اول\")","v":0}]
[null,9,"معلم",{"$f":"COUNTIF('بيانات المدرسين'!$G$5:$G$120,\"معلم\")","v":2}]
[null,null,"اخصائى",{"$f":"COUNTIF('بيانات المدرسين'!$G$5:$G$120,\"اخصائى\")","v":0}]
[null,11,"معلم مساعد",{"$f":"COUNTIF('بيانات المدرسين'!$G$5:$G$120,\"معلم مساعد\")","v":0}]
[null,12,"تعاقدات",{"$f":"COUNTIF('بيانات المدرسين'!$G$5:$G$120,\"تعاقدات\")","v":0}]
[null,"الاجمالى",null,{"$f":"SUM(D13:D24)","v":31}]

{"sheet":"الاسماء حسب الدرجة","index":5,"n_rows":120,"n_cols":52,"rows_kept":120,"cut":false,"hidden":false,"merged":[[2,5,3,5],[2,0,3,0],[2,1,3,1],[2,2,3,2],[2,3,3,3],[2,4,3,4],[2,17,3,17],[2,6,3,6],[2,7,3,7],[2,8,3,8],[2,9,3,9],[2,10,3,10],[2,11,3,11],[2,12,3,12],[2,13,3,13],[2,14,3,14],[2,15,3,15],[2,16,3,16],[2,29,3,29],[2,18,3,18],[2,19,3,19],[2,20,3,20],[2,21,3,21],[2,22,3,22],[2,23,3,23],[2,24,3,24],[2,25,3,25],[2,26,3,26],[2,27,3,27],[2,28,3,28],[2,41,3,41],[2,30,3,30],[2,31,3,31],[2,32,3,32],[2,33,3,33],[2,34,3,34],[2,35,3,35],[2,36,3,36],[2,37,3,37],[2,38,3,38],[2,39,3,39],[2,40,3,40],[2,48,3,48],[2,49,3,49],[2,50,3,50],[2,51,3,51],[2,42,3,42],[2,43,3,43],[2,44,3,44],[2,45,3,45],[2,46,3,46],[2,47,3,47]]}
[null,null,null,null,null,null,null,null,null,null,null,null,null,null,null,null,null,null,null,null,null,null,null,null,null,null,0]
[1,2,3,4,5,6,7,8,9,10,11,12,13,14,15,16,17,18,19,20,21,22,23,24,25,26,27,28,29,30,31,32,33,34,35,36,37,38,39,40,41,42,43,44,45,46,47,48,49,50,51,52]
["مسلسل","اسم المدرس","كود المدرس","التخصص","الوظيفة","الرقم القومى","المسمى الوظيفى طبقا للكادر","رقم القرار","تاريخ المسمى الوظيفى","تاريخ الميلاد","رقم التليفون","الدرجة المالية","تاريخ الدرجة","المجموعة النوعية","المؤهل","نوع المؤهل","تاريخ المؤهل","جهة الحصول على المؤهل","تقدير المؤهل","تاريخ التعيين","تاريخ الاستلام","المديرية","الادارة","المدرسة","المرحلة","محل الميلاد","الجنسية","الديانة","النوع","الحالة الاجتماعية","العنوان","الموقف من العمل","الموقف من التجنيد","الدورات الحاصل عليها","تاريخ الاحالة للمعاش"]
[]
[null,null,null,null,null,null,null,null,null,null,null,null,null,null,null,null,null,null,null,null,null,null,null,null,null,null,1]
[9,"حامد عبدالعزيز الامين موسى",21589,"رياضيات","نائب مدير",26408072800297,"كبير معلمين",163,"2018-10-21","1964-08-07","01002038944","الاولى","2018-10-21","الوظائف التخصصية للتعليم","بكلوريوس علوم وتربية","عليا","1987-06-01","جامعة اسيوط","جيد","1987-09-01","1988-01-05","أسوان","دراو","بنبان الثانوية المشتركة","الثانوية","أسوان","مصرى","مسلم","ذكر","متزوج ويعول","بنبان قبلى","على رأس عمله","أدى الخدمة",null,"2024-08-07"]
[17,"سمير محمد منصور حسين",25431,"جغرافيا","مدرس ثانوى",26612142801152,"كبير معلمين",163,"2018-10-21","1966-12-14","01022632136","الاولى","2018-10-21","الوظائف التخصصية للتعليم","ليسانس اداب وتربية","عليا","1988-06-01","جامعة المنيا","مقبول","1990-10-01","1991-03-04","أسوان","دراو","بنبان الثانوية المشتركة","الثانوية","أسوان","مصرى","مسلم","ذكر","متزوج ويعول","الرقبة","على رأس عمله","أدى الخدمة",null,"2026-12-14"]
[25,"عبدالجواد على عبداللطيف احمد",24817,"لغة عربية","وكيل مدرسة ثانوى",26705112800435,"كبير معلمين",163,"2018-10-21","1967-05-11","01003698741","الاولى","2018-10-21","الوظائف التخصصية للتعليم","ليسانس أداب وتربية","عليا","1989-06-01","جامعة اسيوط","جيد","1989-10-18","1991-09-14","أسوان","دراو","بنبان الثانوية المشتركة","الثانوية","أسوان","مصرى","مسلم","ذكر","متزوج ويعول","الرقبة","على رأس عمله","أدى الخدمة",null,"2027-05-11"]
[26,"عبد السيد نبيه عبدالسيد جرجس",25483,"احياء","مدرس اول ثانوى",26711192800678,"كبير معلمين",163,"2018-10-21","1967-11-19","01006427046","الاولى","2018-10-21","الوظائف التخصصية للتعليم","بكلوريوس علوم وتربية","عليا","1989-06-01","جامعة جنوب الوادى","جيد","1989-09-01","1989-11-22","أسوان","دراو","بنبان الثانوية المشتركة","الثانوية","أسوان","مصرى","مسلم","ذكر","متزوج ويعول","كوم امبو","على رأس عمله","أدى الخدمة",null,"2027-11-19"]
[28,"علاء الدين احمد عبد الحليم محمد",23007,"لغة عربية","مدير مدرسة",26509212800552,"كبير معلمين",163,"2018-10-21","1965-09-21","01007359632","الاولى","2018-10-21","الوظائف التخصصية للتعليم","ليسانس آداب وتربية","عليا","1988-06-01","جامعة اسيوط","جيد","1988-12-01","1988-12-01","أسوان","دراو","بنبان الثانوية المشتركة","الثانوية","أسوان","مصرى","مسلم","ذكر","متزوج ويعول","دراو","على رأس عمله","أدى الخدمة",null,"2025-09-21"]
[]
[]
[]
[]
[]
[]
[]
[]
[]
[]
[]
[]
[]
[]
[]
[]
[]
[]
[]
[]
[]
[]
[]
[]
[]
[]
[]
[]
[]
[]
[]
[]
[]
[]
[]
[]
[]
[]
[]
[]
[]
[]
[]
[]
[]
[]
[]
[]
[]
[]
[]
[]
[]
[]
[]
[]
[]
[]
[]
[]
[]
[]
[]
[]
[]
[]
[]
[]
[]
[]
[]
[]
[]
[]
[]
[]
[]
[]
[]
[]
[]
[]
[]
[]
[]
[]
[]
[]
[]
[]
[{"$f":"IF(B101=\"\",\"\",ROW()-5)","v":""},null,null,null,null,null,null,null,null,{"$f":"IF(F101=\"\",\"\",DATE(IF(LEFT(F101,1)*1=3,20,19)&MID(F101,2,2),MID(F101,4,2),MID(F101,6,2)))","v":""},null,null,null,null,null,null,null,null,null,null,null,null,null,null,null,{"$f":"Kh_Date_Sex_Province($F101,3)","v":""},null,null,{"$f":"IF(LEN(TRIM($F101))=0,\"\",IF(OR(NOT(ISNUMBER($F101)),LEN($F101)<>14),\"قومي خطأ\",IF(MOD(MID($F101,13,1),2)=1,\"ذكر\",\"انثى\")))","v":""}]
["",null,null,null,null,null,null,null,null,"",null,null,null,null,null,null,null,null,null,null,null,null,null,null,null,"",null,null,""]
["",null,null,null,null,null,null,null,null,"",null,null,null,null,null,null,null,null,null,null,null,null,null,null,null,"",null,null,""]
["",null,null,null,null,null,null,null,null,"",null,null,null,null,null,null,null,null,null,null,null,null,null,null,null,"",null,null,""]
["",null,null,null,null,null,null,null,null,"",null,null,null,null,null,null,null,null,null,null,null,null,null,null,null,"",null,null,""]
["",null,null,null,null,null,null,null,null,"",null,null,null,null,null,null,null,null,null,null,null,null,null,null,null,"",null,null,""]
["",null,null,null,null,null,null,null,null,"",null,null,null,null,null,null,null,null,null,null,null,null,null,null,null,"",null,null,""]
["",null,null,null,null,null,null,null,null,"",null,null,null,null,null,null,null,null,null,null,null,null,null,null,null,"",null,null,""]
["",null,null,null,null,null,null,null,null,"",null,null,null,null,null,null,null,null,null,null,null,null,null,null,null,"",null,null,""]
["",null,null,null,null,null,null,null,null,"",null,null,null,null,null,null,null,null,null,null,null,null,null,null,null,"",null,null,""]
["",null,null,null,null,null,null,null,null,"",null,null,null,null,null,null,null,null,null,null,null,null,null,null,null,"",null,null,""]
["",null,null,null,null,null,null,null,null,"",null,null,null,null,null,null,null,null,null,null,null,null,null,null,null,"",null,null,""]
["",null,null,null,null,null,null,null,null,"",null,null,null,null,null,null,null,null,null,null,null,null,null,null,null,"",null,null,""]
["",null,null,null,null,null,null,null,null,"",null,null,null,null,null,null,null,null,null,null,null,null,null,null,null,"",null,null,""]
["",null,null,null,null,null,null,null,null,"",null,null,null,null,null,null,null,null,null,null,null,null,null,null,null,"",null,null,""]
["",null,null,null,null,null,null,null,null,"",null,null,null,null,null,null,null,null,null,null,null,null,null,null,null,"",null,null,""]
["",null,null,null,null,null,null,null,null,"",null,null,null,null,null,null,null,null,null,null,null,null,null,null,null,"",null,null,""]
["",null,null,null,null,null,null,null,null,"",null,null,null,null,null,null,null,null,null,null,null,null,null,null,null,"",null,null,""]
["",null,null,null,null,null,null,null,null,"",null,null,null,null,null,null,null,null,null,null,null,null,null,null,null,"",null,null,""]
[{"$f":"IF(B120=\"\",\"\",ROW()-4)","v":""},null,null,null,null,null,null,null,null,"",null,null,null,null,null,null,null,null,null,null,null,null,null,null,null,"",null,null,""]